bitfinex/quotes_BTCUSD_20250530
["timestamp","ask_amount","ask_price","bid_price","bid_amount"]
[1748645186745,0.01921921,104060.0,104050.0,0.28423437]
[1748645186960,0.02882905,104060.0,104050.0,0.28423437]
[1748645187162,0.22102585,104060.0,104050.0,0.28423437]
[1748645187367,0.02882905,104060.0,104050.0,0.28423437]
[1748645187579,0.02882905,104060.0,104050.0,0.29384448]
[1748645187788,0.02897216,104070.0,104060.0,0.2210252]
[1748645187991,0.23075941,104070.0,104060.0,0.22102538]
[1748645188404,0.22115114,104070.0,104060.0,0.21141619]
[1748645188829,0.22115114,104070.0,104050.0,0.66235431]
[1748645188830,0.23303387,104070.0,104050.0,0.25582874]
[1748645189035,0.00960956,104060.0,104050.0,0.25482874]
[1748645189247,0.00960928,104060.0,104050.0,0.25482874]
[1748645189448,0.01921875,104060.0,104050.0,0.25482874]
[1748645189655,0.01921828,104060.0,104050.0,0.25482874]
[1748645190082,0.009609,104060.0,104050.0,0.26502042]
[1748645190291,0.01921819,104060.0,104050.0,0.26402042]
[1748645190700,0.01921819,104060.0,104050.0,0.26502042]
[1748645191645,0.01936287,104070.0,104060.0,0.2210252]
[1748645191853,0.01936287,104070.0,104060.0,0.31188232]
[1748645192062,0.02897123,104070.0,104060.0,0.31188232]
[1748645192315,0.02897114,104070.0,104060.0,0.321074]
[1748645192520,0.0097547,104070.0,104060.0,0.23021688]
[1748645192720,0.01936306,104070.0,104060.0,0.23021688]
[1748645192928,0.0289716,104070.0,104060.0,0.23021688]
[1748645193264,0.0319716,104070.0,104060.0,0.23021688]
[1748645195118,0.04158024,104070.0,104060.0,0.23021688]
[1748645195425,0.00314662,104070.0,104060.0,0.85214299]
[1748645195974,0.00314662,104070.0,104060.0,0.41521705]
[1748645195975,0.01275489,104070.0,104060.0,0.41521705]
[1748645196167,0.04158043,104070.0,104060.0,0.32607118]
[1748645196418,0.0319717,104070.0,104060.0,0.32607118]
[1748645196998,0.02236325,104070.0,104060.0,0.32607118]
[1748645197199,0.01275489,104070.0,104060.0,0.32607118]
[1748645198019,0.01275489,104070.0,104060.0,0.74360349]
[1748645198213,0.01275489,104070.0,104060.0,0.83611471]
[1748645198432,0.00314662,104070.0,104060.0,0.85221471]
[1748645198633,0.00314662,104070.0,104060.0,0.88335556]
[1748645199588,0.00314662,104070.0,104060.0,0.88718239]
[1748645199589,0.00014662,104070.0,104060.0,0.88718239]
[1748645199790,0.00014662,104070.0,104060.0,0.89218239]
[1748645199971,0.00014662,104070.0,104060.0,0.88908487]
[1748645200333,0.00014662,104070.0,104060.0,0.89008487]
[1748645200533,0.00014662,104070.0,104060.0,0.89208487]
[1748645200733,0.00014662,104070.0,104060.0,1.02536487]
[1748645201403,0.00014662,104070.0,104060.0,0.61941057]
[1748645201557,0.00014662,104070.0,104060.0,1.73240487]
[1748645201772,0.00014662,104070.0,104060.0,1.74391085]
[1748645202023,0.00014662,104070.0,104060.0,1.75384116]
[1748645202239,0.20294531,104110.0,104090.0,0.22096141]
[1748645202456,0.03842318,104100.0,104090.0,0.26323277]
[1748645202662,0.02881704,104100.0,104090.0,0.26323277]
[1748645202879,0.23944326,104100.0,104090.0,0.25362644]
[1748645203088,0.04732031,104100.0,104090.0,0.27283974]
[1748645203298,0.03842309,104100.0,104090.0,0.28244625]
[1748645203504,0.03842309,104100.0,104090.0,0.28344625]
[1748645203705,0.03842309,104100.0,104090.0,0.29263793]
[1748645203913,0.0096054,104100.0,104090.0,0.29163738]
[1748645204133,0.23054604,104100.0,104090.0,0.28203096]
[1748645204349,0.04542291,104100.0,104090.0,0.29263738]
[1748645204543,0.02621108,104100.0,104090.0,0.29263738]
[1748645204719,0.03581704,104100.0,104090.0,0.29263738]
[1748645204929,0.02621108,104100.0,104090.0,0.29263738]
[1748645205137,0.03581704,104100.0,104090.0,0.29263738]
[1748645205342,0.03281667,104100.0,104090.0,0.29263738]
[1748645205545,0.24015181,104100.0,104090.0,0.23015355]
[1748645205752,0.24115181,104100.0,104090.0,0.23015355]
[1748645205953,0.23154641,104100.0,104090.0,0.23015355]
[1748645206154,0.07382346,104100.0,104090.0,0.23975997]
[1748645206357,0.26594641,104100.0,104090.0,0.23015355]
[1748645207190,0.06421732,104100.0,104090.0,0.28295055]
[1748645207629,0.06421732,104100.0,104090.0,0.27375887]
[1748645207834,0.06421732,104100.0,104090.0,0.28336529]
[1748645208479,0.03181732,104100.0,104090.0,0.28336529]
[1748645208708,0.22394027,104100.0,104090.0,0.27375887]
[1748645208850,0.22394027,104100.0,104090.0,0.23056838]
[1748645209063,0.22394027,104100.0,104090.0,0.22096197]
[1748645209267,0.25634027,104100.0,104090.0,0.22096197]
[1748645209469,0.25634027,104100.0,104090.0,0.21135527]
[1748645209669,0.237129,104100.0,104080.0,0.19214401]
[1748645209902,0.003,104100.0,104090.0,0.21135508]
[1748645210100,0.003,104100.0,104090.0,0.96684611]
[1748645210299,0.01260531,104100.0,104090.0,1.08798348]
[1748645210749,0.02221081,104100.0,104090.0,1.08798348]
[1748645210949,0.003,104100.0,104090.0,1.08798348]
[1748645211157,0.0126055,104100.0,104090.0,1.1804947]
[1748645211355,0.0126055,104100.0,104090.0,1.19199468]
[1748645211503,0.04672819,104110.0,104100.0,0.22094027]
[1748645211874,0.05633332,104110.0,104100.0,0.62682488]
[1748645212079,0.05633323,104110.0,104100.0,0.63600795]
[1748645212286,0.0467281,104110.0,104100.0,0.64884997]
[1748645212490,0.05633314,104110.0,104100.0,0.64884997]
[1748645212697,0.05833314,104110.0,104100.0,0.64884997]
[1748645213125,0.05633314,104110.0,104100.0,0.64884997]
[1748645213331,0.0467281,104110.0,104100.0,0.24296536]
[1748645213551,0.04772819,104110.0,104100.0,0.24396536]
[1748645213969,0.0477281,104110.0,104100.0,0.24396536]
[1748645214175,0.01891401,104110.0,104100.0,0.77060641]
[1748645214390,0.01891401,104110.0,104100.0,0.78560641]
[1748645214596,0.01891401,104110.0,104100.0,0.39426265]
[1748645214805,0.01891401,104110.0,104100.0,0.80014726]
[1748645215423,0.01891401,104110.0,104100.0,0.39426265]
[1748645215629,0.01891401,104110.0,104100.0,0.80014726]
[1748645217925,0.01891401,104110.0,104100.0,0.39426265]
[1748645218133,0.01891401,104110.0,104100.0,0.80014726]
[1748645220613,0.01891401,104110.0,104100.0,0.78514726]
[1748645222084,0.01891401,104110.0,104100.0,0.78494182]
[1748645222301,0.01891401,104110.0,104100.0,0.80044182]
[1748645222948,0.01891401,104110.0,104100.0,0.39476265]
[1748645223152,0.01891401,104110.0,104100.0,0.80044182]
[1748645224425,0.00672524,104120.0,104110.0,0.62659822]
[1748645224623,0.00721378,104120.0,104110.0,0.71215268]
[1748645224835,0.01969584,104120.0,104110.0,0.71215268]
[1748645225046,0.02929977,104120.0,104110.0,0.71215268]
[1748645225257,0.02929968,104120.0,104110.0,0.71215268]
[1748645225688,0.0399037,104120.0,104110.0,0.72133575]
[1748645225895,0.0419037,104120.0,104110.0,0.72133575]
[1748645226099,0.03229968,104120.0,104110.0,0.72133575]
[1748645226317,0.04190361,104120.0,104110.0,0.72133575]
[1748645227109,0.05150772,104120.0,104110.0,0.72133575]
[1748645227320,0.04190361,104120.0,104110.0,0.72133575]
[1748645227862,0.03229968,104120.0,104110.0,0.72133575]
[1748645228513,0.05150781,104120.0,104110.0,0.72133575]
[1748645228897,0.0419037,104120.0,104110.0,0.72133575]
[1748645229339,0.24758272,104120.0,104110.0,0.00918307]
[1748645230130,0.0288141,104110.0,104100.0,0.64583062]
[1748645230339,0.07121923,104110.0,104100.0,0.64583062]
[1748645230540,0.07121923,104110.0,104100.0,0.65544578]
[1748645230749,0.07121923,104110.0,104100.0,0.25894992]
[1748645230954,0.07121923,104110.0,104100.0,0.35146114]
[1748645231373,0.27292867,104110.0,104100.0,0.25034452]
[1748645231588,0.27292867,104110.0,104100.0,0.24072936]
[1748645231893,0.08082417,104110.0,104100.0,0.24072936]
[1748645232108,0.07121886,104110.0,104100.0,0.24072936]
[1748645232327,0.03021886,104110.0,104100.0,0.24072936]
[1748645232545,0.03021886,104110.0,104100.0,0.33324058]
[1748645233441,0.04942792,104110.0,104100.0,0.33324058]
[1748645233705,0.02061345,104110.0,104100.0,0.34281553]
[1748645233923,0.02881372,104110.0,104100.0,0.7484947]
[1748645234139,0.02881372,104110.0,104100.0,0.73931139]
[1748645234360,0.01920896,104110.0,104100.0,0.73931139]
[1748645234589,0.02930005,104120.0,104110.0,0.22091905]
[1748645234794,0.0100921,104120.0,104110.0,0.31343027]
[1748645235033,0.01969584,104120.0,104110.0,0.31343027]
[1748645235247,0.01009219,104120.0,104110.0,0.31343027]
[1748645235677,0.00048854,104120.0,104110.0,0.71910944]
[1748645236112,0.01109201,104120.0,104110.0,0.71910944]
[1748645236334,0.00148854,104120.0,104110.0,0.71910944]
[1748645236686,0.00348854,104120.0,104110.0,0.71910944]
[1748645236905,0.01309201,104120.0,104110.0,0.71910944]
[1748645237122,0.01009201,104120.0,104110.0,0.71910944]
[1748645237359,0.01969566,104120.0,104110.0,0.71910944]
[1748645237773,0.00048854,104120.0,104110.0,0.72010944]
[1748645238193,0.00048854,104120.0,104110.0,0.81596374]
[1748645238427,0.00048854,104120.0,104110.0,0.83146374]
[1748645239305,0.00048854,104120.0,104110.0,0.84296372]
[1748645239942,0.00048854,104120.0,104110.0,0.82746372]
[1748645241076,0.00048854,104120.0,104110.0,0.84296372]
[1748645242164,0.00048854,104120.0,104110.0,0.82746372]
[1748645242390,0.00048854,104120.0,104110.0,0.42178455]
[1748645242803,0.01009201,104120.0,104110.0,0.42178455]
[1748645243007,0.00048854,104120.0,104110.0,0.42178455]
[1748645244901,0.00048854,104120.0,104110.0,0.84316372]
[1748645245112,0.00048854,104120.0,104110.0,0.43748455]
[1748645245543,0.00048854,104120.0,104110.0,0.84316372]
[1748645246851,0.00048854,104120.0,104110.0,0.85926372]
[1748645248679,0.00048854,104120.0,104110.0,0.84316372]
[1748645248887,0.00048854,104120.0,104110.0,0.43748455]
[1748645249045,0.00048854,104120.0,104110.0,0.82746372]
[1748645249249,0.01009201,104120.0,104110.0,0.82746372]
[1748645249880,0.00048854,104120.0,104110.0,0.82746372]
[1748645251001,0.00048854,104120.0,104110.0,0.42178455]
[1748645251203,0.00048854,104120.0,104110.0,0.32593025]
[1748645251412,0.06170033,104120.0,104110.0,0.23341903]
[1748645251575,0.06170033,104120.0,104110.0,0.22191905]
[1748645251576,0.06170023,104120.0,104110.0,0.22191905]
[1748645251964,0.05209612,104120.0,104110.0,0.22191905]
[1748645252164,0.06170023,104120.0,104110.0,0.22191905]
[1748645252571,0.05209612,104120.0,104110.0,0.22191905]
[1748645252795,0.06170023,104120.0,104110.0,0.27813369]
[1748645253402,0.41806023,104120.0,104110.0,0.27813369]
[1748645254023,0.40845612,104120.0,104110.0,0.27813369]
[1748645254216,0.37806023,104120.0,104110.0,0.27813369]
[1748645254751,0.3876637,104120.0,104110.0,0.27813369]
[1748645254948,0.35636,104120.0,104110.0,0.27813369]
[1748645255167,0.36596347,104120.0,104110.0,0.27813369]
[1748645255393,0.38352883,104130.0,104120.0,0.22089784]
[1748645255597,0.02880883,104130.0,104120.0,0.27942587]
[1748645255974,0.38336883,104130.0,104120.0,0.27942587]
[1748645256635,0.38536883,104130.0,104120.0,0.27942587]
[1748645256853,0.01260264,104130.0,104120.0,0.27942587]
[1748645257066,0.003,104130.0,104120.0,0.27942587]
[1748645257281,0.36640255,104130.0,104120.0,0.27942587]
[1748645257693,0.37600528,104130.0,104120.0,0.27942587]
[1748645258124,0.36596255,104130.0,104120.0,0.27942587]
[1748645258340,0.37556528,104130.0,104120.0,0.27942587]
[1748645258558,0.38316819,104130.0,104120.0,0.22089784]
[1748645258787,0.38216819,104130.0,104120.0,0.22089784]
[1748645259218,0.37256528,104130.0,104120.0,0.22089784]
[1748645259740,0.01920528,104130.0,104120.0,0.22089784]
[1748645259931,0.02,104140.0,104130.0,0.22087662]
[1748645260159,0.02,104140.0,104130.0,0.76821178]
[1748645260409,0.02,104140.0,104130.0,0.31629176]
[1748645260620,0.03920371,104140.0,104130.0,0.22043746]
[1748645260827,0.0488058,104140.0,104130.0,0.29398249]
[1748645261005,0.0488057,104140.0,104130.0,0.29498249]
[1748645261584,0.05840788,104140.0,104130.0,0.29498249]
[1748645261795,0.03920362,104140.0,104130.0,0.22143746]
[1748645261999,0.0488058,104140.0,104130.0,0.22143746]
[1748645262206,0.0488057,104140.0,104130.0,0.22143746]
[1748645262407,0.0488057,104140.0,104130.0,0.22138644]
[1748645262616,0.0488057,104140.0,104130.0,0.24878335]
[1748645262818,0.04889949,104140.0,104130.0,0.24878335]
[1748645263042,0.04889959,104140.0,104130.0,0.24878335]
[1748645264403,0.05850186,104140.0,104130.0,0.24878335]
[1748645264604,0.06810422,104140.0,104130.0,0.24927362]
[1748645264831,0.06810422,104140.0,104130.0,0.25887635]
[1748645265791,0.25055166,104140.0,104130.0,0.21227389]
[1748645265995,0.04890014,104140.0,104130.0,0.22187671]
[1748645266195,0.0585025,104140.0,104130.0,0.23147944]
[1748645266633,0.26015411,104140.0,104130.0,0.22187671]
[1748645267047,0.26015411,104140.0,104130.0,0.23147944]
[1748645267241,0.26015411,104140.0,104130.0,0.2837109]
[1748645268139,0.26015411,104140.0,104130.0,0.28371108]
[1748645268342,0.06810495,104140.0,104130.0,0.28371108]
[1748645268655,0.26015411,104140.0,104130.0,0.28371108]
[1748645269078,0.26015411,104140.0,104130.0,0.23147962]
[1748645269510,0.25055221,104140.0,104130.0,0.23147962]
[1748645269934,0.25055221,104140.0,104130.0,0.2218768]
[1748645270143,0.25055221,104140.0,104130.0,0.23147962]
[1748645270993,0.26284776,104140.0,104130.0,0.001]
[1748645273674,0.31284776,104140.0,104130.0,0.001]
[1748645274138,0.40870206,104140.0,104130.0,0.001]
[1748645274766,0.41758792,104140.0,104130.0,0.001]
[1748645274979,0.41758793,104140.0,104130.0,0.001]
[1748645275190,0.40870206,104140.0,104130.0,0.001]
[1748645275437,0.41758746,104140.0,104130.0,0.001]
[1748645275651,0.40870206,104140.0,104130.0,0.001]
[1748645276071,0.41758752,104140.0,104130.0,0.001]
[1748645276288,0.41758753,104140.0,104130.0,0.001]
[1748645276500,0.40870206,104140.0,104130.0,0.001]
[1748645277155,0.41758755,104140.0,104130.0,0.001]
[1748645278224,0.40870206,104140.0,104130.0,0.001]
[1748645278677,0.41758791,104140.0,104130.0,0.001]
[1748645278897,0.40870206,104140.0,104130.0,0.001]
[1748645279107,0.41758791,104140.0,104130.0,0.001]
[1748645280417,0.41758722,104140.0,104130.0,0.001]
[1748645280852,0.41758766,104140.0,104130.0,0.001]
[1748645281060,0.41758798,104140.0,104130.0,0.001]
[1748645282206,0.76250799,104140.0,104130.0,0.001]
[1748645282629,0.76250755,104140.0,104130.0,0.001]
[1748645282832,0.75362206,104140.0,104130.0,0.001]
[1748645283037,0.76250758,104140.0,104130.0,0.001]
[1748645283487,0.76250787,104140.0,104130.0,0.001]
[1748645283907,0.75362206,104140.0,104130.0,0.001]
[1748645284110,0.76250807,104140.0,104130.0,0.001]
[1748645284599,0.76250819,104140.0,104130.0,0.001]
[1748645284832,0.76250822,104140.0,104130.0,0.001]
[1748645285829,0.76250901,104140.0,104130.0,0.001]
[1748645287556,0.75362206,104140.0,104130.0,0.001]
[1748645287761,0.76250843,104140.0,104130.0,0.001]
[1748645287979,0.75362206,104140.0,104130.0,0.001]
[1748645288201,0.762509,104140.0,104130.0,0.001]
[1748645288426,0.76250902,104140.0,104130.0,0.001]
[1748645288628,0.76250824,104140.0,104130.0,0.001]
[1748645289462,0.76250873,104140.0,104130.0,0.001]
[1748645290120,0.7595492,104140.0,104130.0,0.001]
[1748645290976,0.72805145,104140.0,104130.0,0.001]
[1748645291190,0.72805143,104140.0,104130.0,0.001]
[1748645291410,0.72805144,104140.0,104130.0,0.033]
[1748645291639,0.72805325,104140.0,104130.0,0.033]
[1748645292055,0.72805339,104140.0,104130.0,0.033]
[1748645292297,0.72805341,104140.0,104130.0,0.033]
[1748645292720,0.72805389,104140.0,104130.0,0.033]
[1748645292954,0.72805388,104140.0,104130.0,0.033]
[1748645293167,0.71916206,104140.0,104130.0,0.033]
[1748645293382,0.72805389,104140.0,104130.0,0.033]
[1748645293845,0.7280539,104140.0,104130.0,0.033]
[1748645294065,0.72805414,104140.0,104130.0,0.033]
[1748645294493,0.72805414,104140.0,104130.0,0.05838981]
[1748645294696,0.72805408,104140.0,104130.0,0.05838981]
[1748645294921,0.72805432,104140.0,104130.0,0.05838981]
[1748645295132,0.71916206,104140.0,104130.0,0.05838981]
[1748645295569,0.71916206,104140.0,104130.0,0.033]
[1748645295781,0.72805412,104140.0,104130.0,0.033]
[1748645296425,0.71916206,104140.0,104130.0,0.033]
[1748645296631,0.72805461,104140.0,104130.0,0.033]
[1748645296837,0.71916206,104140.0,104130.0,0.033]
[1748645297044,0.7280571,104140.0,104130.0,0.033]
[1748645297458,0.72805707,104140.0,104130.0,0.033]
[1748645297872,0.72805707,104140.0,104130.0,0.0165]
[1748645298082,0.72805729,104140.0,104130.0,0.0165]
[1748645298286,0.72805728,104140.0,104130.0,0.032]
[1748645298497,0.72806076,104140.0,104130.0,0.032]
[1748645298819,0.71916206,104140.0,104130.0,0.032]
[1748645299006,0.71916206,104140.0,104130.0,0.05632941]
[1748645299273,0.7280621,104140.0,104130.0,0.05632941]
[1748645300191,0.3861021,104140.0,104130.0,0.05632941]
[1748645300393,0.62888743,104140.0,104130.0,0.27720631]
[1748645300595,0.07009379,104140.0,104130.0,0.28680904]
[1748645300826,0.59802027,104140.0,104130.0,0.28680904]
[1748645301061,0.26015346,104140.0,104130.0,0.27720631]
[1748645301484,0.24094994,104140.0,104130.0,0.26760349]
[1748645302613,0.24094994,104140.0,104130.0,0.25800039]
[1748645302821,0.23134776,104140.0,104130.0,0.2240676]
[1748645303033,0.23134776,104140.0,104130.0,0.032]
[1748645303034,0.24024977,104140.0,104130.0,0.032]
[1748645303245,0.23134776,104140.0,104130.0,0.032]
[1748645303665,0.23134776,104140.0,104130.0,0.001]
[1748645303929,1.04611164,104130.0,104120.0,0.01149756]
[1748645304142,1.59782568,104130.0,104120.0,0.01149756]
[1748645304568,1.58782568,104130.0,104120.0,0.01149756]
[1748645304989,1.58782568,104130.0,104080.0,0.0155]
[1748645304990,0.21135527,104090.0,104080.0,0.0155]
[1748645305228,0.21135527,104090.0,104080.0,0.08232907]
[1748645305437,0.21135527,104090.0,104080.0,0.09882907]
[1748645305654,0.21135527,104090.0,104080.0,0.10843706]
[1748645306062,0.21135527,104090.0,104080.0,0.23376786]
[1748645306272,0.21144898,104090.0,104080.0,0.24337576]
[1748645306494,0.21244898,104090.0,104080.0,0.25037576]
[1748645306708,0.00109371,104090.0,104080.0,0.27919852]
[1748645306923,0.00109371,104090.0,104080.0,0.37505282]
[1748645307148,0.86937693,104110.0,104100.0,0.20172891]
[1748645307361,0.86937693,104110.0,104100.0,0.00048854]
[1748645307568,0.86937693,104110.0,104100.0,0.03248854]
[1748645307786,0.53213693,104110.0,104100.0,0.03248854]
[1748645307991,0.86905693,104110.0,104100.0,0.03248854]
[1748645308211,0.86905693,104110.0,104100.0,0.05879418]
[1748645308428,0.87005693,104110.0,104100.0,0.06179418]
[1748645308633,0.87105693,104110.0,104100.0,0.06479418]
[1748645309280,0.87061693,104110.0,104100.0,0.06479418]
[1748645309914,0.002,104110.0,104100.0,0.28573445]
[1748645310119,0.02120933,104110.0,104100.0,0.28573445]
[1748645310341,0.2325239,104110.0,104100.0,0.28573445]
[1748645310550,0.0404194,104110.0,104100.0,0.28573445]
[1748645310982,0.2325239,104110.0,104100.0,0.28573445]
[1748645311662,0.03081427,104110.0,104100.0,0.28573445]
[1748645311861,0.05002444,104110.0,104100.0,0.28573445]
[1748645312069,0.24212959,104110.0,104100.0,0.28573445]
[1748645312899,0.23252483,104110.0,104100.0,0.27612895]
[1748645313312,0.02120961,104110.0,104100.0,0.29534004]
[1748645313528,0.03081465,104110.0,104100.0,0.29534004]
[1748645313743,0.02120961,104110.0,104100.0,0.29534004]
[1748645313949,0.03081391,104110.0,104100.0,0.29534004]
[1748645314182,0.04041895,104110.0,104100.0,0.29534004]
[1748645314404,0.03081382,104110.0,104100.0,0.29534004]
[1748645314628,0.002,104110.0,104100.0,0.29534004]
[1748645314832,0.01920758,104120.0,104110.0,0.21131448]
[1748645315035,0.02881114,104120.0,104110.0,0.31997418]
[1748645315235,0.03841525,104120.0,104110.0,0.33885679]
[1748645315881,0.00960356,104120.0,104110.0,0.33885679]
[1748645316090,0.02881123,104120.0,104110.0,0.34085679]
[1748645316295,0.02881123,104120.0,104110.0,0.34285679]
[1748645316504,0.4899,104130.0,104120.0,0.22089784]
[1748645316724,0.22165161,104140.0,104130.0,0.2208769]
[1748645316941,0.25045787,104140.0,104130.0,0.2208769]
[1748645317164,0.25045787,104140.0,104130.0,0.2511769]
[1748645317165,0.58429787,104140.0,104130.0,0.2511769]
[1748645317457,0.03920352,104140.0,104130.0,0.2511769]
[1748645317683,0.03920389,104140.0,104130.0,0.26077963]
[1748645317902,0.03920389,104140.0,104130.0,0.35329085]
[1748645318573,0.03060162,104140.0,104130.0,0.44914515]
[1748645318806,0.04880533,104140.0,104130.0,0.44914515]
[1748645319017,0.02,104140.0,104130.0,0.44914515]
[1748645319221,0.021,104140.0,104130.0,0.44914515]
[1748645319480,0.03060172,104140.0,104130.0,0.45004515]
[1748645319691,0.02,104140.0,104130.0,1.31428432]
[1748645319906,0.02,104140.0,104130.0,1.29762517]
[1748645320111,0.02,104140.0,104130.0,1.29962517]
[1748645320538,0.02,104140.0,104130.0,1.33043057]
[1748645320707,0.02,104140.0,104130.0,1.34192813]
[1748645320930,0.02960181,104140.0,104130.0,1.34192813]
[1748645321125,0.04880598,104140.0,104130.0,0.80614811]
[1748645321327,0.06801042,104140.0,104130.0,0.91206538]
[1748645321527,0.06801024,104140.0,104130.0,0.80614811]
[1748645321960,0.06801024,104140.0,104130.0,0.79465055]
[1748645322163,0.33647914,104140.0,104130.0,0.0362]
[1748645322366,0.19025361,104140.0,104130.0,0.23787079]
[1748645322567,0.19025361,104140.0,104130.0,0.23787098]
[1748645322773,0.20945806,104140.0,104130.0,0.24747426]
[1748645322983,0.53411272,104150.0,104140.0,0.19204916]
[1748645323186,0.53411272,104150.0,104140.0,0.04587287]
[1748645324223,0.53420655,104150.0,104140.0,0.04587287]
[1748645324809,0.53420655,104150.0,104140.0,0.04687287]
[1748645328894,0.53420655,104150.0,104140.0,0.06257287]
[1748645329725,0.53420655,104150.0,104140.0,0.04687287]
[1748645329941,0.53420655,104150.0,104140.0,0.24852439]
[1748645330715,0.53420655,104150.0,104140.0,0.26422439]
[1748645330927,0.53420655,104150.0,104140.0,0.28932666]
[1748645331543,0.53420655,104150.0,104140.0,0.25812666]
[1748645332637,0.53420655,104150.0,104140.0,0.27432666]
[1748645333110,0.53420655,104150.0,104140.0,0.24852439]
[1748645334753,0.53420655,104150.0,104140.0,0.80116175]
[1748645334754,9.383e-05,104150.0,104140.0,0.80116175]
[1748645334966,9.383e-05,104150.0,104140.0,0.39548258]
[1748645335410,9.383e-05,104150.0,104140.0,0.80116175]
[1748645335626,9.383e-05,104150.0,104140.0,1.2675426]
[1748645335834,9.383e-05,104150.0,104140.0,0.86186343]
[1748645336041,9.383e-05,104150.0,104140.0,1.2675426]
[1748645337157,9.383e-05,104150.0,104140.0,1.2665426]
[1748645337379,9.383e-05,104150.0,104140.0,1.2705426]
[1748645337380,0.00109383,104150.0,104140.0,1.2705426]
[1748645337586,0.00209383,104150.0,104140.0,1.2745426]
[1748645337790,0.00209383,104150.0,104140.0,1.28604016]
[1748645337989,9.383e-05,104150.0,104140.0,1.27804016]
[1748645338154,0.00209383,104150.0,104140.0,1.28804016]
[1748645338529,0.00209383,104150.0,104140.0,0.88236099]
[1748645338739,0.00209383,104150.0,104140.0,1.28804016]
[1748645340166,0.5308641,104180.0,104170.0,0.21119295]
[1748645340361,0.53095788,104180.0,104170.0,0.24137798]
[1748645340568,0.20115788,104180.0,104170.0,0.24137798]
[1748645340795,0.20115788,104180.0,104170.0,0.21119314]
[1748645341219,0.0095995,104170.0,104160.0,0.220813]
[1748645341453,0.02879842,104170.0,104160.0,0.21121304]
[1748645341672,0.22079227,104170.0,104160.0,0.22081319]
[1748645341894,0.2303915,104170.0,104160.0,0.23041325]
[1748645342121,0.2303915,104170.0,104160.0,0.286956]
[1748645342331,0.2303915,104170.0,104160.0,0.23241325]
[1748645342961,0.23999119,104170.0,104160.0,0.23241325]
[1748645343390,0.03839765,104170.0,104160.0,0.24401321]
[1748645343798,0.02879805,104170.0,104160.0,0.24401321]
[1748645344006,0.01919818,104170.0,104160.0,0.25354079]
[1748645344159,0.22035495,104180.0,104170.0,0.21119258]
[1748645344363,0.54887495,104180.0,104170.0,0.22079162]
[1748645344596,0.35736888,104180.0,104170.0,0.23039075]
[1748645344992,0.35724879,104180.0,104170.0,0.24549075]
[1748645345204,0.02888879,104180.0,104170.0,0.26129075]
[1748645345429,0.02888879,104180.0,104170.0,0.31450134]
[1748645345647,0.0096919,104180.0,104170.0,0.31450134]
[1748645345868,0.01929021,104180.0,104170.0,0.31450134]
[1748645346078,0.01929021,104180.0,104170.0,0.33367927]
[1748645346304,0.02888879,104180.0,104170.0,0.33367927]
[1748645346511,0.0288887,104180.0,104170.0,0.33467927]
[1748645346942,0.0096919,104180.0,104170.0,0.33467927]
[1748645347174,0.02888879,104180.0,104170.0,0.33467927]
[1748645348227,0.23046288,104180.0,104170.0,0.28246868]
[1748645348449,0.23046288,104180.0,104170.0,0.26666868]
[1748645348897,0.03848746,104180.0,104170.0,0.26666868]
[1748645349113,0.02888879,104180.0,104170.0,0.26666868]
[1748645350222,0.03848746,104180.0,104170.0,0.25156868]
[1748645350400,0.23046288,104180.0,104170.0,0.25156868]
[1748645350637,0.22086476,104180.0,104170.0,0.22277128]
[1748645351066,0.22086476,104180.0,104170.0,0.23237069]
[1748645351479,0.22086476,104180.0,104170.0,0.24196992]
[1748645352544,0.22086476,104180.0,104170.0,0.29513843]
[1748645353758,0.22086476,104180.0,104170.0,0.24196992]
[1748645354362,0.22086476,104180.0,104170.0,0.23237069]
[1748645354776,0.21126645,104180.0,104170.0,0.23237069]
[1748645355799,0.20166787,104180.0,104170.0,0.23237069]
[1748645356007,0.20166787,104180.0,104170.0,0.22277128]
[1748645356357,0.1920692,104180.0,104170.0,0.22277128]
[1748645356989,0.1920692,104180.0,104170.0,0.27306716]
[1748645357442,0.1920692,104180.0,104170.0,0.22277128]
[1748645358902,0.1920692,104180.0,104170.0,0.22277147]
[1748645360499,0.1920692,104180.0,104170.0,0.02117793]
[1748645360708,0.1920692,104180.0,104170.0,0.21317178]
[1748645360916,0.1920692,104180.0,104170.0,0.22277147]
[1748645361324,0.1920692,104180.0,104170.0,0.02117793]
[1748645361545,0.1920692,104180.0,104170.0,0.22277147]
[1748645362168,0.1920692,104180.0,104170.0,0.21317178]
[1748645362375,0.1920692,104180.0,104170.0,0.22277147]
[1748645362576,0.1920692,104180.0,104170.0,0.02117793]
[1748645363013,0.2228692,104180.0,104170.0,0.02117793]
[1748645363238,0.2228692,104180.0,104170.0,0.002]
[1748645363448,0.23178148,104180.0,104170.0,0.002]
[1748645364082,0.2228692,104180.0,104170.0,0.002]
[1748645364503,0.23178108,104180.0,104170.0,0.002]
[1748645364924,0.23178025,104180.0,104170.0,0.002]
[1748645365575,0.2228692,104180.0,104170.0,0.002]
[1748645365783,0.2317797,104180.0,104170.0,0.002]
[1748645366205,0.23177987,104180.0,104170.0,0.002]
[1748645366616,0.23177958,104180.0,104170.0,0.002]
[1748645367585,0.23177948,104180.0,104170.0,0.002]
[1748645368242,0.2317791,104180.0,104170.0,0.002]
[1748645369101,0.2317789,104180.0,104170.0,0.002]
[1748645369527,0.23177897,104180.0,104170.0,0.002]
[1748645369711,0.2228692,104180.0,104170.0,0.002]
[1748645369962,0.23177915,104180.0,104170.0,0.002]
[1748645370593,0.2228692,104180.0,104170.0,0.002]
[1748645370808,0.23177927,104180.0,104170.0,0.002]
[1748645371024,0.23177931,104180.0,104170.0,0.002]
[1748645371236,0.2228692,104180.0,104170.0,0.002]
[1748645371906,0.23177904,104180.0,104170.0,0.002]
[1748645372115,0.2228692,104180.0,104170.0,0.002]
[1748645372323,0.23177898,104180.0,104170.0,0.002]
[1748645373199,0.23177874,104180.0,104170.0,0.002]
[1748645373411,0.2228692,104180.0,104170.0,0.002]
[1748645373619,0.23177893,104180.0,104170.0,0.002]
[1748645373838,0.2228692,104180.0,104170.0,0.002]
[1748645374052,0.23177891,104180.0,104170.0,0.002]
[1748645374278,0.2228692,104180.0,104170.0,0.002]
[1748645374487,0.231779,104180.0,104170.0,0.002]
[1748645374693,0.2228692,104180.0,104170.0,0.002]
[1748645375588,0.231779,104180.0,104170.0,0.002]
[1748645376005,0.23177904,104180.0,104170.0,0.002]
[1748645376210,0.23177899,104180.0,104170.0,0.002]
[1748645376639,0.2228692,104180.0,104170.0,0.002]
[1748645376868,0.23177919,104180.0,104170.0,0.002]
[1748645377075,0.23177916,104180.0,104170.0,0.002]
[1748645377693,0.23177923,104180.0,104170.0,0.002]
[1748645378303,0.2075692,104180.0,104170.0,0.002]